Cogmind - Beta 12 @@@ ROGUE MODE // 2023.05.31 @ 17:37:58 Player: Mr Goldstein Result: Self-destructed Performance ------------- Evolutions (3) 1500 Regions Visited (10) 2000 Robots Destroyed (5) 25 Value Destroyed (62) 62 Prototype IDs (2) 40 Alien Tech Used (0) 0 Bonus (200) 200 TOTAL SCORE: 3827 Bonus ------- Pacifist 200 Cogmind --------- Core Integrity 667/700 Matter 146/300 Energy 99/100 System Corruption 10% Temperature Cool (0) Movement Core (50) Location -7/Factory Parts ------- > --- POWER (1) -------- (None) > --- PROPULSION (5) --- Armored Huge Wheel > --- UTILITY (5) ------ (None) > --- WEAPON (2) ------- (None) > --- INVENTORY (5) ---- Micro Nuclear Core Rocket Launcher Remote Datajack Peak State ------------ > --- POWER ------------ (None) > --- PROPULSION ------- Armored Huge Wheel Xenon Bombardment Thruster Xenon Bombardment Thruster Improved Cesium-ion Thruster > --- UTILITY ---------- Small Storage Unit Machine Analyzer Advanced Visual Processing Unit Improved Melee Analysis Suite System Shield > --- WEAPON ----------- Great Maul > --- INVENTORY -------- Micro Nuclear Core Armored Huge Wheel Rocket Launcher Remote Datajack Great Axe [Rating: 40] Favorites ----------- Power None Propulsion Titanium Leg Leg Titanium Leg Wheel Armored Huge Wheel Flight Unit Xenon Bombardment Thruster Utility Improved Melee Analysis Suite Storage Small Storage Unit Processor Improved Melee Analysis Suite Hackware System Shield Weapon Great Maul Launcher Grenade Launcher Impact Weapon Great Maul Build | -11 -10 -10 -9 -9 -9 -8 -8 -7 -7 -7 ------- Run | Jun Mat Min Mat Min Exi Min Mat Fac Was Fac Slots Evolved 6 | . . . 2 . . . 2 2 . . Power . | . . . . . . . . . . . Propulsion 3 | . . . 1 . . . 1 1 . . Utility 3 | . . . 1 . . . 1 1 . . Weapon . | . . . . . . . . . . . Parts Attached 20 | . . . 4 2 . . 6 7 1 . Power . | . . . . . . . . . . . Engine . | . . . . . . . . . . . Core . | . . . . . . . . . . . Reactor . | . . . . . . . . . . . Propulsion 9 | . . . 3 . . . 2 3 1 . Treads . | . . . . . . . . . . . Leg 3 | . . . 3 . . . . . . . Wheel 3 | . . . . . . . 2 . 1 . Hover . | . . . . . . . . . . . Flight 3 | . . . . . . . . 3 . . Utility 7 | . . . . . . . 4 3 . . Device . | . . . . . . . . . . . Storage 1 | . . . . . . . . 1 . . Processor 5 | . . . . . . . 4 1 . . Hackware 1 | . . . . . . . . 1 . . Protection . | . . . . . . . . . . . Artifact . | . . . . . . . . . . . Weapon 4 | . . . 1 2 . . . 1 . . Energy Gun . | . . . . . . . . . . . Energy Cannon . | . . . . . . . . . . . Ballistic Gun . | . . . . . . . . . . . Ballistic Cannon . | . . . . . . . . . . . Launcher 3 | . . . 1 2 . . . . . . Special Weapon . | . . . . . . . . . . . Impact Weapon 1 | . . . . . . . . 1 . . Slashing Weapon . | . . . . . . . . . . . Piercing Weapon . | . . . . . . . . . . . Special Melee Weapon . | . . . . . . . . . . . Unidentified Prototypes 2 | . . . 1 . . . . 1 . . Parts Lost 2 | . . . . . . . . . 2 . Power . | . . . . . . . . . . . Propulsion 2 | . . . . . . . . . 2 . Utility . | . . . . . . . . . . . Weapon . | . . . . . . . . . . . Highest Loss Streak 2 | . . . . . . . . . 2 . To Critical Strikes . | . . . . . . . . . . . Average Slot Usage (%) 39 | . . . 23 34 33 33 50 64 35 7 Leg 11 | . . . 23 33 33 33 20 . . . Wheel 4 | . . . . . . . 2 10 7 7 Flight 4 | . . . . . . . . 10 7 . Storage 1 | . . . . . . . . 4 3 . Processor 12 | . . . . . . . 28 25 9 . Hackware 2 | . . . . . . . . 7 3 . Impact Weapon 1 | . . . . . . . . 3 3 . Naked Turns 101 | . 60 25 15 . . . . . 1 . Heaviest Build 9 | . . . . . . . . 9 9 . Greatest Support 51 | 3 3 3 51 3 3 3 3 12 12 3 Greatest Overweight (x) 2 | . . . . . . . . . 2 . Average Overweight (x) . | . . . . . . . . . . . Largest Inventory Capacity 8 | 5 5 5 5 5 5 5 5 8 8 5 Average Capacity 5 | 5 5 5 5 5 5 5 5 6 6 5 Most Carried 6 | 1 1 2 2 2 2 2 4 6 6 3 Average Carried 2 | . 1 1 2 1 2 2 2 4 4 3 Final Capacity 8 | 5 5 5 5 5 5 5 5 8 5 5 Final Carried 6 | 1 1 2 2 2 2 2 4 6 3 3 Class Distribution -------------------- 100% | Mutant Dominant Class ---------------- Mutant | -10/Materials Mutant | -10/Mines Mutant | -9/Materials Mutant | -9/Mines Mutant | -9/Exiles Mutant | -8/Mines Mutant | -8/Materials Mutant | -7/Factory Mutant | -7/Waste Mutant | -7/Factory Resources | -11 -10 -10 -9 -9 -9 -8 -8 -7 -7 -7 ----------- Run | Jun Mat Min Mat Min Exi Min Mat Fac Was Fac Matter Collected 276 | 200 . . . 26 . . . 50 . . Remotely . | . . . . . . . . . . . Salvage Created 62 | . . . . 12 . . . 50 . . Parts 6 | . . . . 5 . . . 1 . . Haulers Intercepted 1 | . . . . . . . . 1 . . Recyclers Shooed . | . . . . . . . . . . . Parts Field Recycled . | . . . . . . . . . . . Retrieved Matter . | . . . . . . . . . . . Parts Self-Destructed . | . . . . . . . . . . . Prevented . | . . . . . . . . . . . Kills | -11 -10 -10 -9 -9 -9 -8 -8 -7 -7 -7 ------- Run | Jun Mat Min Mat Min Exi Min Mat Fac Was Fac Combat Hostiles Destroyed 4 | . . . . 4 . . . . . . AOE 4 | . . . . 4 . . . . . . Classes Destroyed 2 | . . . . 1 . . . 1 . . Hauler 1 | . . . . . . . . 1 . . Swarmer 4 | . . . . 4 . . . . . . Best Kill Streak 4 | . . . . 4 . . . 1 . . Combat Bots Only 4 | . . . . 4 . . . . . . Max Kills in Single Turn 2 | . . . . 2 . . . 1 . . Gunslinging . | . . . . . . . . . . . Exploded 2 | . . . . 2 . . . . . . Melee . | . . . . . . . . . . . Uniques/NPCs Destroyed . | . . . . . . . . . . . Combat | -11 -10 -10 -9 -9 -9 -8 -8 -7 -7 -7 -------- Run | Jun Mat Min Mat Min Exi Min Mat Fac Was Fac Damage Taken 720 | . 197 . 10 138 . 50 135 110 80 . Core 306 | . 197 . 10 22 . 2 42 33 . . Absorbed by Shields . | . . . . . . . . . . . Core Remaining (%) 76 | 100 . 21 . . . 91 92 . . . Volleys Fired 4 | . . . . 4 . . . . . . Largest 1 | . . . . 1 . . . . . . Hottest 30 | . . . . 30 . . . . . . Shots Fired 4 | . . . . 4 . . . . . . Gun . | . . . . . . . . . . . Cannon . | . . . . . . . . . . . Launcher 4 | . . . . 4 . . . . . . Special . | . . . . . . . . . . . Kinetic . | . . . . . . . . . . . Thermal . | . . . . . . . . . . . Explosive 4 | . . . . 4 . . . . . . Electromagnetic . | . . . . . . . . . . . Robot Hit Streak . | . . . . . . . . . . . Robot Miss Streak . | . . . . . . . . . . . Penetration Max . | . . . . . . . . . . . Secondary Targets . | . . . . . . . . . . . Shots Hit Robots 2 | . . . . . . . . 2 . . Core Hits 5 | . 1 . . 4 . . . . . . Critical Kills . | . . . . . . . . . . . Critical Parts Destroyed . | . . . . . . . . . . . Critical Strikes . | . . . . . . . . . . . Melee Attacks 4 | . . . . . . . . 4 . . Impact 4 | . . . . . . . . 4 . . Slashing . | . . . . . . . . . . . Piercing . | . . . . . . . . . . . Sneak Attacks 1 | . . . . . . . . 1 . . Combat Hostiles . | . . . . . . . . . . . Follow-up Attacks . | . . . . . . . . . . . Damage Inflicted 472 | . 14 . . 303 . 5 1 149 . . Guns . | . . . . . . . . . . . Cannons . | . . . . . . . . . . . Explosions 289 | . . . . 289 . . . . . . Melee 149 | . . . . . . . . 149 . . Ramming 34 | . 14 . . 14 . 5 1 . . . Kinetic . | . . . . . . . . . . . Thermal . | . . . . . . . . . . . Explosive 289 | . . . . 289 . . . . . . Electromagnetic . | . . . . . . . . . . . Impact 149 | . . . . . . . . 149 . . Slashing . | . . . . . . . . . . . Piercing . | . . . . . . . . . . . Highest Corruption 10 | . . . . . . . . 4 10 10 Average Corruption 8 | . . . . . . . . 4 7 10 Corruption Purged . | . . . . . . . . . . . Corruption Blocked . | . . . . . . . . . . . Effects 4 | . . . . . . . . . 2 2 Matter Fused 1 | . . . . . . . . . . 1 Energy Discharges 1 | . . . . . . . . . 1 . Data Loss (major) 1 | . . . . . . . . . . 1 Misdirections 1 | . . . . . . . . . 1 . Overload Shots . | . . . . . . . . . . . Overflow Damage 21 | . . . . 1 . . . 20 . . Projectiles . | . . . . . . . . . . . Explosions 1 | . . . . 1 . . . . . . Melee 20 | . . . . . . . . 20 . . Knockbacks . | . . . . . . . . . . . Impact . | . . . . . . . . . . . Kinetic . | . . . . . . . . . . . Secondary . | . . . . . . . . . . . Self-Inflicted Damage 62 | . 7 . . 53 . 2 . . . . Shots 2 | . . . . 2 . . . . . . Rammed 8 | . 3 . . 3 . 1 1 . . . Targets Rammed 8 | . 3 . . 3 . 1 1 . . . Kicked . | . . . . . . . . . . . Crushed . | . . . . . . . . . . . Highest Temperature . | . . . . . . . . . . . Average Temperature . | . . . . . . . . . . . Received Heat Transfer 213 | . 102 . 6 . . 27 36 42 . . Siege Activations . | . . . . . . . . . . . Robots Corrupted . | . . . . . . . . . . . Combat Hostiles . | . . . . . . . . . . . Parts Fried 1 | . . . . . . . . 1 . . Impact Corruptions 1 | . . . . . . . . 1 . . Robots Melted . | . . . . . . . . . . . Combat Hostiles . | . . . . . . . . . . . Parts Melted . | . . . . . . . . . . . Heat Transferred . | . . . . . . . . . . . Parts Sabotaged . | . . . . . . . . . . . Parts Stolen . | . . . . . . . . . . . Parts Stripped . | . . . . . . . . . . . Power Chain Reactions . | . . . . . . . . . . . Missiles Intercepted . | . . . . . . . . . . . Alert | -11 -10 -10 -9 -9 -9 -8 -8 -7 -7 -7 ------- Run | Jun Mat Min Mat Min Exi Min Mat Fac Was Fac Peak Influence 233 | . 68 26 32 169 . . 30 233 96 63 Initial 81 | . . 26 9 12 . . . 13 81 63 Average 72 | . 39 26 15 53 . . 13 126 82 63 Maximum Alert Level 1 | . . . . . . . . 1 . . Low Security (%) 83 | 100 100 100 100 100 . 100 100 56 100 100 Level 1 16 | . . . . . . . . 43 . . Level 2 . | . . . . . . . . . . . Level 3 . | . . . . . . . . . . . Level 4 . | . . . . . . . . . . . Level 5 . | . . . . . . . . . . . High Security . | . . . . . . . . . . . Max Security . | . . . . . . . . . . . Squads Dispatched 9 | . 2 . . . . . . 7 . . Investigation 8 | . 2 . . . . . . 6 . . Extermination . | . . . . . . . . . . . Reinforcement 1 | . . . . . . . . 1 . . Assault . | . . . . . . . . . . . Garrison . | . . . . . . . . . . . Intercept . | . . . . . . . . . . . Searches Triggered . | . . . . . . . . . . . Construction Impeded . | . . . . . . . . . . . Haulers Reinforced . | . . . . . . . . . . . Active Scanning Responses . | . . . . . . . . . . . Cargo Convoy Interrupts . | . . . . . . . . . . . Stealth | -11 -10 -10 -9 -9 -9 -8 -8 -7 -7 -7 --------- Run | Jun Mat Min Mat Min Exi Min Mat Fac Was Fac Distress Signals 4 | . . . 1 1 . . . 2 . . Communications Jammed . | . . . . . . . . . . . Distress Signals . | . . . . . . . . . . . Times Spotted 37 | . 9 . 3 4 . 3 3 9 6 . Peak Tracking Total 9 | . 9 . 4 4 . 3 4 5 6 . Tactical Retreats 3 | . . . . . . . . 3 . . Traps | -11 -10 -10 -9 -9 -9 -8 -8 -7 -7 -7 ------- Run | Jun Mat Min Mat Min Exi Min Mat Fac Was Fac Traps Triggered 2 | . 1 . . . . . . 1 . . Indirectly . | . . . . . . . . . . . Trap Hack Attempts . | . . . . . . . . . . . Triggered . | . . . . . . . . . . . Disarmed . | . . . . . . . . . . . Reprogrammed . | . . . . . . . . . . . Reused . | . . . . . . . . . . . Traps Extracted . | . . . . . . . . . . . Installed . | . . . . . . . . . . . Triggered . | . . . . . . . . . . . Machines | -11 -10 -10 -9 -9 -9 -8 -8 -7 -7 -7 ---------- Run | Jun Mat Min Mat Min Exi Min Mat Fac Was Fac Machines Disabled 2 | . . . . 2 . . . . . . Max in Single Turn 2 | . . . . 2 . . . . . . Machines Repaired . | . . . . . . . . . . . Machines Sabotaged . | . . . . . . . . . . . Overloaded Fab Kills . | . . . . . . . . . . . Hacking | -11 -10 -10 -9 -9 -9 -8 -8 -7 -7 -7 --------- Run | Jun Mat Min Mat Min Exi Min Mat Fac Was Fac Machines Accessed 11 | . 2 . 2 . 1 . . 6 . . Terminals 6 | . 1 . 2 . . . . 3 . . Fabricators . | . . . . . . . . . . . Repair Stations . | . . . . . . . . . . . Recycling Units 4 | . 1 . . . . . . 3 . . Scanalyzers . | . . . . . . . . . . . Garrison Access . | . . . . . . . . . . . Total Hacks 26 | . 2 . 6 . 1 . . 17 . . Successful 7 | . 2 . 1 . 1 . . 3 . . Failed 19 | . . . 5 . . . . 14 . . Catastrophic 3 | . . . . . . . . 3 . . Database Lockouts . | . . . . . . . . . . . Manual 17 | . 2 . 6 . . . . 9 . . Terminals 15 | . 1 . 6 . . . . 8 . . Fabricators . | . . . . . . . . . . . Repair Stations . | . . . . . . . . . . . Recycling Units 10 | . 1 . . . . . . 9 . . Scanalyzers . | . . . . . . . . . . . Garrison Access . | . . . . . . . . . . . Terminal Hacks 5 | . 1 . 1 . 1 . . 2 . . Record 1 | . . . . . 1 . . . . . Branch Access Points 2 | . 1 . 1 . . . . . . . Registered Components 1 | . . . . . . . . 1 . . Zone Layout 1 | . . . . . . . . 1 . . Fabricator Hacks . | . . . . . . . . . . . Repair Station Hacks . | . . . . . . . . . . . Recycling Unit Hacks . | . . . . . . . . . . . Scanalyzer . | . . . . . . . . . . . Garrison Access Hacks . | . . . . . . . . . . . Unauthorized Hacks 2 | . 1 . . . . . . 1 . . Terminals . | . . . . . . . . . . . Fabricators . | . . . . . . . . . . . Repair Stations . | . . . . . . . . . . . Recycling Units 2 | . 1 . . . . . . 1 . . Tunnel 2 | . 1 . . . . . . 1 . . Scanalyzers . | . . . . . . . . . . . Garrison Access . | . . . . . . . . . . . Data Cores Recovered . | . . . . . . . . . . . Used . | . . . . . . . . . . . Hacking Detections 9 | . 1 . 2 . . . . 6 . . Full Trace Events 5 | . . . . . . . . 5 . . Feedback Events . | . . . . . . . . . . . Feedback Blocked . | . . . . . . . . . . . Robot Schematics Acquired . | . . . . . . . . . . . Robots Built . | . . . . . . . . . . . Authchips . | . . . . . . . . . . . Time . | . . . . . . . . . . . Total Robot Build Rating . | . . . . . . . . . . . Part Schematics Acquired . | . . . . . . . . . . . Parts Built . | . . . . . . . . . . . Authchips . | . . . . . . . . . . . Time . | . . . . . . . . . . . Total Part Build Rating . | . . . . . . . . . . . Parts Repaired . | . . . . . . . . . . . Time . | . . . . . . . . . . . Parts Recycled . | . . . . . . . . . . . Recycled Matter . | . . . . . . . . . . . Retrieved Matter . | . . . . . . . . . . . Retrieved Components . | . . . . . . . . . . . Parts Scanalyzed . | . . . . . . . . . . . Part Schematics Acquired . | . . . . . . . . . . . Parts Damaged . | . . . . . . . . . . . Bothacking | -11 -10 -10 -9 -9 -9 -8 -8 -7 -7 -7 ------------ Run | Jun Mat Min Mat Min Exi Min Mat Fac Was Fac Used RIF Installer . | . . . . . . . . . . . Robots Hacked . | . . . . . . . . . . . Non-combat . | . . . . . . . . . . . Combat . | . . . . . . . . . . . Robot Hacks Applied . | . . . . . . . . . . . Relay Couplers Released . | . . . . . . . . . . . Fabnet Peak Effective % . | . . . . . . . . . . . Robots Rewired . | . . . . . . . . . . . Allies Hacked . | . . . . . . . . . . . Hacks Repelled . | . . . . . . . . . . . Allies | -11 -10 -10 -9 -9 -9 -8 -8 -7 -7 -7 -------- Run | Jun Mat Min Mat Min Exi Min Mat Fac Was Fac Total Allies . | . . . . . . . . . . . Largest Group . | . . . . . . . . . . . Highest-Rated Group . | . . . . . . . . . . . Highest-Rated Ally . | . . . . . . . . . . . Total Orders . | . . . . . . . . . . . Ally Attacks . | . . . . . . . . . . . Total Damage . | . . . . . . . . . . . Kills . | . . . . . . . . . . . Allies Corrupted . | . . . . . . . . . . . Allies Melted . | . . . . . . . . . . . Intel | -11 -10 -10 -9 -9 -9 -8 -8 -7 -7 -7 ------- Run | Jun Mat Min Mat Min Exi Min Mat Fac Was Fac Robot Analysis Total . | . . . . . . . . . . . Derelict Logs Recovered 1 | . . . . 1 . . . . . . Drone Launches . | . . . . . . . . . . . Drone Recoveries . | . . . . . . . . . . . Exploration | -11 -10 -10 -9 -9 -9 -8 -8 -7 -7 -7 ------------- Run | Jun Mat Min Mat Min Exi Min Mat Fac Was Fac Turns Passed 749 | 17 60 25 57 104 64 8 75 265 39 35 Spaces Moved 1340 | 31 113 48 97 180 128 14 122 463 75 69 Core 912 | 31 113 48 94 180 128 14 122 66 47 69 Treads . | . . . . . . . . . . . Legs 3 | . . . 3 . . . . . . . Wheels . | . . . . . . . . . . . Hover . | . . . . . . . . . . . Flight 425 | . . . . . . . . 397 28 . Fastest Speed 47 | 50 50 50 50 50 50 50 50 47 47 50 Average Speed 50 | 50 50 50 52 50 50 50 50 51 50 50 Slowest Speed 150 | 50 50 50 130 50 50 50 50 60 150 50 Overloaded Moves . | . . . . . . . . . . . Propulsion Burnouts . | . . . . . . . . . . . Robots Hopped 5 | . . . . . . . . 5 . . Cave-ins Triggered . | . . . . . . . . . . . Exploration Rate (%) 24 | 3 28 22 15 39 49 7 17 14 73 3 Regions Visited 10 Branch Regions 4 Pre-discovered Areas 3 | . 1 . . . 1 . . 1 . . Known Exits Taken 2 | . 1 . 1 . . . . . . . Unknown Exits Taken 6 | 1 . 1 . 1 1 1 1 . . . Scrap Searched 1 | . . . . 1 . . . . . . Spaces Dug 11 | . . . . 9 . . . 2 . . Terrain Destroyed 55 | . . . . 53 . . . 2 . . Melee 2 | . . . . . . . . 2 . . Projectile . | . . . . . . . . . . . AOE 53 | . . . . 53 . . . . . . Terrain Rammed . | . . . . . . . . . . . Walls Destroyed . | . . . . . . . . . . . Machines Disabled . | . . . . . . . . . . . Actions | -11 -10 -10 -9 -9 -9 -8 -8 -7 -7 -7 --------- Run | Jun Mat Min Mat Min Exi Min Mat Fac Was Fac Total 1380 | 31 115 48 101 190 127 14 133 477 75 69 Wait . | . . . . . . . . . . . Move 1322 | 30 112 47 96 179 127 14 121 453 74 69 Hop 5 | . . . . . . . . 5 . . Pick Up 8 | 1 . 1 . . . . 2 4 . . Fast Attach 14 | . . . 4 . . . 6 4 . . Attach 6 | . . . . 2 . . . 3 1 . Detach 3 | . . . . 2 . . . 1 . . Swap . | . . . . . . . . . . . Drop 7 | . . . 1 . . . 3 3 . . Fire 4 | . . . . 4 . . . . . . Melee 4 | . . . . . . . . 4 . . Ram 7 | . 3 . . 3 . . 1 . . . Kick . | . . . . . . . . . . . Crush . | . . . . . . . . . . . Escape Stasis . | . . . . . . . . . . . Rewire . | . . . . . . . . . . . Trap . | . . . . . . . . . . . Miscellaneous . | . . . . . . . . . . . Route ------- -11/Junkyard -10/Materials (discovered 2 exits: *Mat / *Min) -10/Mines -9/Materials -9/Mines (discovered 2 exits: [*Mat] / *Exi) -9/Exiles -8/Mines -8/Materials -7/Factory -7/Waste -7/Factory History --------- Turn | Location | Event 7 | -11/Junkyard | Discovered new exit (range 15) 18 | -11/Junkyard | Entered Materials 22 | -10/Materials | Identified exit to Mines 59 | -10/Materials | Discovered new exit (range 5) 72 | -10/Materials | Core integrity fell below 50% 78 | -10/Materials | Entered Mines 93 | -10/Mines | YI-UF0 nonchalantly dropped a Grenade Launcher on the ground 98 | -10/Mines | Discovered new exit (range 12) 103 | -10/Mines | Entered Materials 103 | -9/Materials | Evolved 2 slots: Propulsion x1, Utility x1 132 | -9/Materials | Identified exit to Mines 160 | -9/Materials | Entered Mines 165 | -9/Mines | Learned Materials emergency access door positions 177 | -9/Mines | Assembled infested the area 177 | -9/Mines | Discovered new exit (range 9) 182 | -9/Mines | Assisted by a Guerilla fighting off Assembled 262 | -9/Mines | Deemed a non-threat by the Exiles lab entrance 262 | -9/Mines | Discovered new exit (range 5) 264 | -9/Mines | Entered Exiles 277 | -9/Exiles | Met 8R-AWN 285 | -9/Exiles | Met EX-HEX 304 | -9/Exiles | Build established: Mutant 305 | -9/Exiles | Met EX-DEC 308 | -9/Exiles | Learned location of Zion (-7) 323 | -9/Exiles | Discovered new exit (range 14) 328 | -9/Exiles | Entered Mines 329 | -8/Mines | Discovered new exit (range 13) 336 | -8/Mines | Entered Materials 336 | -8/Materials | Evolved 2 slots: Propulsion x1, Utility x1 406 | -8/Materials | Discovered new exit (range 8) 411 | -8/Materials | Entered Factory 411 | -7/Factory | Evolved 2 slots: Propulsion x1, Utility x1 676 | -7/Factory | Sucked down chute 676 | -7/Factory | Entered Waste 686 | -7/Waste | Spotted C-40 Crusher 686 | -7/Waste | Spotted C-40 Crusher 687 | -7/Waste | Spotted C-40 Crusher 689 | -7/Waste | Crushed by Compactor (1 part destroyed, 1 dropped) 690 | -7/Waste | Spotted C-40 Crusher 691 | -7/Waste | EMP discharged 691 | -7/Waste | System corruption reached 10% 691 | -7/Waste | Released all parts (7) 701 | -7/Waste | Spotted C-40 Crusher 702 | -7/Waste | Spotted C-40 Crusher 705 | -7/Waste | Discovered new exit (range 15) 715 | -7/Waste | Entered Factory 750 | -7/Factory | Self-destructed Last Messages --------------- 00689_ Machine Analyzer crushed. 00689_ Xenon Bombardment Thruster destroyed. 00691_ System corrupted (+6). 00691_ Released Sml. Storage Unit. 00691_ Released Adv. Visual Processing Unit. 00691_ Released Imp. Melee Analysis Suite. 00691_ Released Great Maul. 00691_ Released Arm. Huge Wheel. 00691_ Released System Shield. 00691_ Released Faulty Imp. Cesium-ion Thruster. 00692_ Great Axe crushed. 00694_ Great Maul crushed. 00694_ Sml. Storage Unit crushed. 00694_ Faulty Imp. Cesium-ion Thruster crushed. 00704_ System corrupted: Energy discharge (-37). 00705_ EXIT=FOUND LOCATION=UNKNOWN GOAL=ESCAPE 00735_ System corrupted: Substantial component data lost. 00750_ System corrupted: Matter fused (-9). Map ----- +----------------------------------------------------+ | ?????????????????????????????????#[ ???????? | | ?????????????????????????????????# ?????????? | | ???????##########?????#############+#######????? | | ???????#]] ####### + +????? | | ???????#] """ # # ### #######????? | | ???????# """ # # [ #?# #??????????? | | ???????# """ # # #?# #??????????? | | ???????# / + + """""" #?# #??????????? | | ???????# """ # # """""" #?# ############ | | ???????# """ # # """""" #?# ## # | | ???????# """ # # """""" #?# ## # | | ???????# # ############# ## # | | ???????########## #???########! # # | | ????????????????# + # | | ????????????????# ###?# ###### # # | | ????????????????# #???? ?????##### # | | ????????????????# #???? ?????????# # | | ???????????????? #???# #????????#####+####? | | ???????????????####+####### #????????????# #???? | | ??????????????????? # #????????????# #???? | | ???????????????????"""" # #????????????# #???? | | ???????????????????"""" # #????????????# #???? | | ????????????????""""""" # #????????????# #???? | | ?????????????# """"""" # #????????????# #???? | | ?????????????? ! # ############## #???? | | ??????????????????""""" @/ #???? | | ??????????????????""""" ##################???? | | ??????????????????""""" #????????????????????? | | ???????????????????"""" #????????????????????? | | ??????????????????? ?????????????????????? | | ?????????????????? ?????????????????????? | | ?????????????????#########?????????????????????? | | | | | | | | | | | | | | | | | | | | | | | | | | | | | | | | | | | | | +----------------------------------------------------+ Best States ------------- Heat Dissipation 34 Energy Generation 5 Energy Capacity 100 Matter Stores 300 Matter Capacity 300 Sight Range 20 Terrain Scan Density 10 Evasion (%) 60 Melee Accuracy 18 Defensive Hacking 10 Item Schematics ----------------- None Robot Schematics ------------------ None Fabricated ------------ Nothing Alien Tech Used ----------------- None Achievements -------------- None Challenges ------------ None Game ------ Seed HardenedShrapnelGravjet Manual? 0 Play Time 00:23:49 Cumulative 258.0 hours Start 2023.05.31 @ 16:39:08 End 2023.05.31 @ 17:37:58 Sessions 1 Manual Loads 0 Difficulty Rogue Special Mode None Game No. 769 Rogue 769 Adventurer 0 Explorer 0 Win Type - Total 13 Types 8/0/3/2/0/0/0/0/0 Lore% 87 Gallery% 84 Achievement% 76 Wizard Run 0 Options --------- ASCII 0 Keyboard 0 Movement Numpad Keybinds 0 Fullscreen 1 Font 16/SmallcapsGlow Map View 75x55 Tactical HUD 1 Map Filters NONE Filters NONE Steam 1 RUN: b549f1cf-586e-47b4-95a6-6d2acecaf621